bitfinex-derivatives/quotes_BTCF0:USTF0_20250402
["timestamp","ask_amount","ask_price","bid_price","bid_amount"]
[1743627943548,0.23188671,85108.0,85107.0,0.4034667]
[1743627943743,0.2303267,85108.0,85107.0,0.1174967]
[1743627943944,0.2303267,85108.0,85105.0,0.00894482]
[1743627943945,0.1174981,85106.0,85105.0,0.12644412]
[1743627944247,0.1190181,85106.0,85105.0,0.1174993]
[1743627944543,0.1480024,85106.0,85105.0,0.1174993]
[1743627944842,0.1597043,85106.0,85105.0,0.1174993]
[1743627945249,0.1597043,85106.0,85105.0,0.12624011]
[1743627945444,0.00152,85106.0,85105.0,0.12624011]
[1743627945651,0.29400929,85115.0,85114.0,0.1174871]
[1743627945847,0.2950893,85115.0,85114.0,0.1174871]
[1743627946450,0.41096344,85115.0,85114.0,0.1174871]
[1743627947443,0.53946344,85115.0,85114.0,0.1174871]
[1743627947746,0.41096344,85115.0,85114.0,0.1174871]
[1743627948341,0.53816344,85115.0,85114.0,0.1174871]
[1743627948644,0.37335415,85115.0,85114.0,0.1174871]
[1743627949440,0.24615415,85115.0,85114.0,0.1174871]
[1743627949642,0.19777115,85127.0,85124.0,0.1174733]
[1743627949846,0.3608,85136.0,85135.0,0.1174581]
[1743627950044,0.36164,85136.0,85135.0,0.1174581]
[1743627950347,0.00084,85136.0,85135.0,0.17591715]
[1743627951155,0.00084,85136.0,85135.0,0.1181381]
[1743627952553,0.4790967,85136.0,85135.0,0.00068]
[1743627952744,0.1174981,85108.0,85107.0,0.1174944]
[1743627953052,0.3608,85110.0,85109.0,0.117494]
[1743627953552,0.36164,85110.0,85109.0,0.118094]
[1743627953752,0.37199333,85110.0,85109.0,0.118094]
[1743627953942,0.62589333,85110.0,85109.0,0.118094]
[1743627954545,0.50499333,85110.0,85109.0,0.118094]
[1743627955056,0.14419333,85110.0,85109.0,0.118094]
[1743627955444,0.00084,85110.0,85109.0,0.17622609]
[1743627955847,0.3608,85112.0,85111.0,0.1174912]
[1743627956045,0.36148,85112.0,85111.0,0.17630329]
[1743627956549,0.133,85117.0,85116.0,0.1174843]
[1743627956748,0.13388001,85117.0,85116.0,0.17649639]
[1743627957046,0.25478001,85117.0,85116.0,0.17649639]
[1743627957351,0.25478001,85117.0,85116.0,0.1174843]
[1743627957653,0.25478001,85117.0,85116.0,0.1180843]
[1743627958451,0.00088001,85117.0,85116.0,0.1180843]
[1743627958651,0.00017625,85118.0,85117.0,0.1174829]
[1743627958955,0.11765785,85118.0,85117.0,0.17602523]
[1743627959247,0.00081625,85118.0,85117.0,0.17602523]
[1743627959452,0.00081625,85118.0,85116.0,0.4608136]
[1743627959646,0.00081625,85118.0,85116.0,0.4614536]
[1743627959847,0.00081625,85118.0,85117.0,0.1174829]
[1743627960046,0.11829785,85118.0,85117.0,0.1180829]
[1743627960650,0.00081625,85118.0,85117.0,0.1180829]
[1743627961359,0.11829785,85118.0,85117.0,0.1180829]
[1743627961664,0.11829785,85118.0,85117.0,0.1174829]
[1743627961959,0.11829785,85118.0,85117.0,0.1181229]
[1743627963550,0.17703975,85118.0,85110.0,0.04750791]
[1743627963762,0.3608,85115.0,85111.0,0.05725298]
[1743627963960,0.1323,85114.0,85112.0,0.11599788]
[1743627964264,0.1323,85114.0,85113.0,0.05725298]
[1743627964265,0.25261769,85114.0,85113.0,0.05725298]
[1743627964653,0.25261769,85114.0,85113.0,0.05785298]
[1743627964950,0.25261769,85114.0,85113.0,0.05725298]
[1743627965149,0.25261769,85114.0,85113.0,0.05785298]
[1743627965560,0.25261769,85114.0,85113.0,0.0006]
[1743627965754,0.1174885,85113.0,85112.0,0.1174898]
[1743627966056,0.1182485,85113.0,85112.0,0.17534912]
[1743627966267,0.1203191,85113.0,85112.0,0.1180898]
[1743627966554,0.1203191,85113.0,85112.0,0.0006]
[1743627966763,0.1174981,85106.0,85105.0,0.12628546]
[1743627966948,0.4790581,85106.0,85105.0,0.17536214]
[1743627967147,0.49562436,85106.0,85105.0,0.17536214]
[1743627967349,0.49562436,85106.0,85105.0,0.1180983]
[1743627967756,0.49562436,85106.0,85105.0,0.0006]
[1743627968260,0.49562436,85106.0,85105.0,0.00924257]
[1743627968453,0.49562436,85106.0,85105.0,0.0006]
[1743627969256,0.49562436,85106.0,85105.0,0.1180995]
[1743627969453,0.49562436,85106.0,85105.0,0.0006]
[1743627972357,0.62642436,85106.0,85105.0,0.0006]
[1743627973662,1.04355876,85106.0,85105.0,0.0002]
[1743627973855,1.17255876,85106.0,85105.0,0.0002]
[1743627974059,0.117505,85101.0,85100.0,0.355]
[1743627974259,0.11838501,85101.0,85100.0,0.3556]
[1743627974454,0.51661112,85101.0,85100.0,0.0006]
[1743627974760,0.39910612,85101.0,85079.0,0.117535]
[1743627974962,0.39910612,85101.0,85081.0,0.1292]
[1743627975264,0.0587557,85097.0,85082.0,0.1175304]
[1743627975561,0.0587588,85092.0,85082.0,0.0006]
[1743627975764,0.1175265,85086.0,85082.0,0.1181311]
[1743627975964,0.3696272,85085.0,85083.0,0.1248]
[1743627976160,0.25919587,85085.0,85083.0,0.1254]
[1743627976365,0.37672297,85085.0,85083.0,0.2429296]
[1743627976555,0.1175285,85084.0,85083.0,0.2429296]
[1743627976757,0.11840851,85084.0,85083.0,0.0006]
[1743627976957,0.31097436,85084.0,85083.0,0.1181299]
[1743627977265,0.49472,85114.0,85098.0,0.1175092]
[1743627977565,0.1293,85102.0,85098.0,0.00064]
[1743627977765,0.00077626,85099.0,85098.0,0.00064]
[1743627978067,0.11828436,85099.0,85096.0,0.2567]
[1743627978262,0.2546,85098.0,85096.0,0.25738]
[1743627978566,0.1175106,85097.0,85096.0,0.25738]
[1743627978768,0.00088,85097.0,85096.0,0.25738]
[1743627978966,0.1206,85125.0,85105.0,0.1174995]
[1743627979165,0.0587483,85108.0,85105.0,0.36152]
[1743627979362,0.1181381,85106.0,85105.0,0.00072]
[1743627979562,0.00064,85106.0,85097.0,0.0587553]
[1743627979765,0.1208,85105.0,85104.0,0.1175009]
[1743627979958,0.1208,85105.0,85104.0,0.00064]
[1743627980164,0.2389395,85105.0,85104.0,0.00064]
[1743627980362,0.3691395,85105.0,85104.0,0.00064]
[1743627980664,0.3691395,85105.0,85104.0,0.1181409]
[1743627981568,0.25164,85105.0,85104.0,0.1181409]
[1743627981770,0.3691395,85105.0,85104.0,0.1181409]
[1743627981955,0.3691395,85105.0,85104.0,0.00064]
[1743627982267,0.1175106,85097.0,85096.0,0.13207625]
[1743627982573,0.00064,85097.0,85096.0,0.25022815]
[1743627982758,0.2466099,85098.0,85096.0,0.25022815]
[1743627982960,0.2477106,85097.0,85096.0,0.25022815]
[1743627983166,0.2484306,85097.0,85096.0,0.25022815]
[1743627983666,0.2484306,85097.0,85096.0,0.13271625]
[1743627983873,0.2484306,85097.0,85096.0,0.25022815]
[1743627984279,0.2484306,85097.0,85096.0,0.13271625]
[1743627984466,0.2484306,85097.0,85096.0,0.13207625]
[1743627984665,0.2484306,85097.0,85096.0,0.13275625]
[1743627984963,0.2484306,85097.0,85096.0,0.00017625]
[1743627985169,0.1175244,85087.0,85086.0,0.1265]
[1743627985469,0.1181644,85087.0,85086.0,0.12714]
[1743627986065,0.3708644,85087.0,85086.0,0.00064]
[1743627989971,0.11754,85076.0,85073.0,0.1175424]
[1743627990170,0.245,85075.0,85063.0,0.3608]
[1743627990374,0.3608,85068.0,85063.0,0.0006]
[1743627990572,0.2434,85067.0,85061.0,0.1175593]
[1743627990774,0.01140037,85067.0,85066.0,0.3608]
[1743627991072,0.01140037,85067.0,85066.0,0.4783534]
[1743627991073,0.01252038,85067.0,85066.0,0.4783534]
[1743627991276,0.01252038,85067.0,85066.0,0.4789534]
[1743627991474,0.27344741,85073.0,85071.0,0.1175456]
[1743627991777,0.3609437,85073.0,85072.0,0.1253]
[1743627992081,0.03004767,85072.0,85066.0,0.4783523]
[1743627992381,0.1175492,85069.0,85068.0,0.1253]
[1743627992580,0.0587777,85065.0,85050.0,0.25]
[1743627992881,0.1175727,85052.0,85051.0,0.125]
[1743627993279,0.1693906,85052.0,85051.0,0.125]
[1743627993578,0.1175741,85051.0,85050.0,0.25]
[1743627993783,0.246,85051.0,85029.0,0.3608]
[1743627993973,0.0588075,85022.0,85013.0,0.32759024]
[1743627994170,0.3608,85021.0,85013.0,0.20996484]
[1743627994376,0.48107524,85021.0,85020.0,0.117617]
[1743627994584,0.12027524,85021.0,85011.0,0.3608]
[1743627994778,0.12027524,85021.0,84950.0,2.60141066]
[1743627994779,0.15,85021.0,84973.0,0.3608]
[1743627995082,0.15,85021.0,84902.0,0.2514]
[1743627995083,0.1177804,84902.0,84901.0,0.4084533]
[1743627995287,0.7216,84902.0,84901.0,0.0476533]
[1743627995582,0.3608,84915.0,84910.0,0.23538005]
[1743627995786,0.3608,84915.0,84911.0,0.23773545]
[1743627996083,0.0742429,84959.0,84934.0,0.23538005]
[1743627996380,0.0588274,84993.0,84934.0,0.23538005]
[1743627996381,0.3608,84992.0,84988.0,0.1176612]
[1743627996586,0.13348,85012.0,84988.0,0.0006]
[1743627996779,0.17982036,85000.0,84999.0,0.3608]
[1743627996974,0.12991141,85000.0,84999.0,0.3608]
[1743627997172,0.28424,85000.0,84999.0,0.0006]
[1743627997474,0.16250785,85000.0,84999.0,0.3608]
[1743627997777,0.16250785,85000.0,84989.0,0.3608]
[1743627997983,0.19232821,85000.0,84989.0,0.3608]
[1743627998280,0.1176585,84990.0,84989.0,0.3608]
[1743627998473,0.01392207,84990.0,84989.0,0.3608]
[1743627998672,0.16392207,84990.0,84989.0,0.3604]
[1743627998972,0.28111489,84990.0,84989.0,0.3604]
[1743627999176,0.28161489,84990.0,84989.0,0.3604]
[1743627999572,0.1176959,84963.0,84962.0,0.4874]
[1743627999775,0.0588462,84966.0,84962.0,0.4874]
[1743628000078,0.0588389,84976.0,84964.0,0.3608]
[1743628000276,1e-08,84965.0,84964.0,0.4784945]
[1743628000476,0.0588262,84995.0,84986.0,0.23538005]
[1743628000781,0.1176613,84988.0,84987.0,0.126]
[1743628000971,0.1176613,84988.0,84987.0,0.4868]
[1743628001479,0.12502075,84988.0,84987.0,0.4868]
[1743628002381,0.12582075,84988.0,84987.0,0.36144]
[1743628002575,0.12582075,84988.0,84979.0,0.00017655]
[1743628002576,0.1176668,84984.0,84979.0,0.00017655]
[1743628002776,0.1176723,84980.0,84979.0,0.00077655]
[1743628002972,0.00831946,84980.0,84979.0,0.11785025]
[1743628003180,0.00017655,84996.0,84995.0,0.1176516]
[1743628003388,0.37722922,85023.0,85001.0,0.058821]
[1743628003682,0.00096001,85008.0,85005.0,0.23538005]
[1743628003880,0.1176361,85007.0,85006.0,0.2499]
[1743628004078,0.1176364,85006.0,85005.0,0.00068]
[1743628004278,0.1176502,84996.0,84995.0,0.00064]
[1743628004475,0.1176543,84993.0,84992.0,0.3608]
[1743628004685,0.0588165,85009.0,84999.0,0.23538005]
[1743628004883,0.0588295,84990.0,84987.0,0.00017643]
[1743628005089,0.49535523,84988.0,84987.0,3e-08]
[1743628005278,0.4784613,84988.0,84987.0,3e-08]
[1743628005474,0.6284613,84988.0,84987.0,3e-08]
[1743628006179,0.0588462,84966.0,84958.0,0.1177016]
[1743628006478,0.3608,84972.0,84960.0,0.1176991]
[1743628006674,0.4196429,84971.0,84960.0,0.0588499]
[1743628006880,0.3608,84980.0,84979.0,0.35305375]
[1743628007082,0.4784723,84980.0,84979.0,0.23538005]
[1743628007277,0.058837,84979.0,84975.0,0.1176787]
[1743628007478,0.1176779,84976.0,84975.0,0.1176787]
[1743628007878,0.3608,84980.0,84979.0,0.1176737]
[1743628008085,0.117666,84985.0,84984.0,0.1176668]
[1743628008388,0.1176696,84983.0,84982.0,0.1176695]
[1743628008587,0.4196345,84983.0,84970.0,0.31602947]
[1743628008885,0.1176734,84981.0,84970.0,0.31602947]
[1743628009191,0.3608,84983.0,84982.0,0.1176696]
[1743628009390,0.36196,84983.0,84982.0,0.1182696]
[1743628009587,0.00017655,84988.0,84987.0,0.1176627]
[1743628009780,0.35354075,84992.0,84991.0,0.1176571]
[1743628009981,0.1176507,84996.0,84995.0,0.1176508]
[1743628010188,0.00084,84996.0,84976.0,0.3608]
[1743628010391,0.3608,84990.0,84989.0,0.1176599]
[1743628010588,0.1176654,84985.0,84984.0,0.2456651]
[1743628010786,0.0588325,84986.0,84982.0,0.1176691]
[1743628010988,0.1176674,84984.0,84983.0,0.1176673]
[1743628011586,0.0588323,84986.0,84983.0,0.1176673]
[1743628011587,0.00112001,84985.0,84984.0,0.1183068]
[1743628011790,0.3608,84988.0,84976.0,0.00017655]
[1743628011791,0.1176632,84987.0,84979.0,0.1176736]
[1743628011992,0.1176632,84987.0,84976.0,0.05901525]
[1743628011993,0.117672,84981.0,84976.0,0.00017655]
[1743628012390,0.1176731,84980.0,84976.0,0.00017655]
[1743628012693,0.0588347,84983.0,84976.0,0.00017655]
[1743628012890,0.1176765,84977.0,84976.0,0.00017655]
[1743628013092,0.1177097,84953.0,84952.0,0.37015879]
[1743628013293,0.3608,84954.0,84952.0,0.00935879]
[1743628013492,0.02285996,84953.0,84952.0,0.00935879]
[1743628013694,0.02285996,84953.0,84952.0,0.12706989]
[1743628013882,0.3608,84969.0,84968.0,0.117689]
[1743628014196,0.37566997,84969.0,84964.0,0.1176936]
[1743628014393,0.3608,84969.0,84964.0,0.1176936]
[1743628014692,0.3608,84969.0,84961.0,0.0588493]
[1743628014885,0.3608,84969.0,84959.0,0.17982036]
[1743628015184,0.0145436,84968.0,84964.0,0.1176939]
[1743628015390,0.0145436,84967.0,84961.0,0.0588492]
[1743628015591,0.3608,84969.0,84959.0,0.17982036]
[1743628015895,0.3608,84969.0,84966.0,0.1176912]
[1743628016086,0.36188001,84969.0,84966.0,0.1182915]
[1743628016393,0.01442848,84968.0,84967.0,0.1295]
[1743628016596,0.00108001,84968.0,84967.0,0.13062]
[1743628016797,0.00108001,84968.0,84967.0,0.2483103]
[1743628016998,0.00108001,84968.0,84967.0,0.13062]
[1743628017193,0.11876901,84968.0,84967.0,0.00112]
[1743628017492,0.16528158,84968.0,84916.0,0.05888]
[1743628017688,0.0588696,84932.0,84916.0,0.13244]
[1743628017996,0.0588696,84932.0,84916.0,0.00064]
[1743628017997,0.4785596,84917.0,84916.0,0.00064]
[1743628018193,0.1177735,84907.0,84906.0,0.131]
[1743628018496,0.49414577,84907.0,84906.0,0.0006]
[1743628018688,0.50701327,84907.0,84906.0,0.0006]
[1743628018889,0.1177818,84901.0,84900.0,0.355]
[1743628019188,0.1194618,84901.0,84900.0,0.355]
[1743628019387,0.20160642,84901.0,84900.0,0.355]
[1743628019791,0.23382462,84901.0,84859.0,0.3608]
[1743628019988,0.1178304,84866.0,84847.0,0.3608]
[1743628020194,0.3624,84866.0,84847.0,0.3608]
[1743628020392,0.46230458,84866.0,84865.0,0.1178318]
[1743628020587,0.46230458,84866.0,84861.0,0.058918]
[1743628020788,0.0589198,84860.0,84850.0,0.25011]
[1743628021000,0.4786429,84857.0,84850.0,0.25011]
[1743628021198,0.49454813,84857.0,84850.0,0.25011]
[1743628021497,0.1178512,84851.0,84850.0,0.25011]
[1743628021684,0.13367643,84851.0,84850.0,0.25011]
[1743628021889,0.26929341,84851.0,84850.0,0.25011]
[1743628022086,0.26929341,84851.0,84825.0,0.3608]
[1743628022087,0.117879,84832.0,84825.0,0.3608]
[1743628022399,0.0016,84832.0,84825.0,0.3608]
[1743628022694,0.00017677,84837.0,84836.0,0.1174721]
[1743628022893,0.01602734,84837.0,84818.0,0.0589483]
[1743628023096,0.25584,84863.0,84610.0,0.00274273]
[1743628023097,0.38243758,84836.0,84773.0,0.1276]
[1743628023291,0.3608,84813.0,84795.0,0.3608]
[1743628023491,0.4197586,84804.0,84784.0,0.3608]
[1743628023686,0.1179207,84801.0,84785.0,0.1283]
[1743628024006,0.1179207,84801.0,84800.0,0.4729221]
[1743628024007,0.03435392,84801.0,84800.0,0.4729221]
[1743628024303,0.3608,84830.0,84803.0,0.0589589]
[1743628024488,0.3608,84830.0,84820.0,0.17982036]
[1743628024688,0.16266798,84830.0,84825.0,0.1178866]
[1743628024887,0.1179046,84813.0,84790.0,0.17982036]
[1743628025104,0.00072,84813.0,84807.0,0.0589561]
[1743628025289,0.01981107,84812.0,84810.0,0.117908]
[1743628025486,0.06287432,84831.0,84828.0,0.1178832]
[1743628025798,0.1178818,84829.0,84828.0,0.00076]
[1743628025998,0.1179054,84812.0,84811.0,0.2412]
[1743628026311,0.01222271,84850.0,84811.0,0.2418]
[1743628026491,0.11846241,84843.0,84842.0,0.3608]
[1743628026694,0.4176,84876.0,84838.0,0.3608]
[1743628026887,0.1178365,84862.0,84851.0,0.1178504]
[1743628027086,0.1178365,84862.0,84854.0,0.1178462]
[1743628027087,0.00064,84862.0,84854.0,0.1178462]
[1743628027289,0.0589187,84861.0,84854.0,0.00064]
[1743628027489,0.00064,84861.0,84860.0,0.1178387]
[1743628027696,0.00064,84861.0,84860.0,0.36144]
[1743628027887,0.25889167,84866.0,84860.0,0.15]
[1743628028195,0.00068,84866.0,84865.0,0.1178318]
[1743628028495,0.25889167,84892.0,84879.0,0.0589056]
[1743628028697,0.25889167,84892.0,84886.0,0.1178026]
[1743628028698,0.36140001,84887.0,84886.0,0.1178026]
[1743628028899,0.22690857,84892.0,84891.0,0.1177957]
[1743628029198,0.22690857,84892.0,84884.0,0.0589023]
[1743628029199,0.11783698,84887.0,84829.0,0.3608]
[1743628029392,0.11783698,84887.0,84819.0,0.3608]
[1743628029393,0.005,84836.0,84819.0,0.3608]
[1743628029597,0.3608,84861.0,84850.0,0.00017676]
[1743628029900,0.005,84851.0,84850.0,0.00017676]
[1743628030103,0.3658,84851.0,84850.0,0.00017676]
[1743628030396,0.3658,84851.0,84803.0,0.1179171]
[1743628030397,0.005,84819.0,84803.0,0.1179171]
[1743628030589,0.005,84819.0,84817.0,0.1246]
[1743628031489,0.005,84840.0,84839.0,0.1178679]
[1743628031691,0.3608,84847.0,84841.0,0.1178642]
[1743628032002,0.00017676,84848.0,84847.0,0.1178568]
[1743628032198,0.3608,84872.0,84843.0,0.058931]
[1743628032498,0.3608,84872.0,84866.0,0.1178292]
[1743628032702,0.3608,84872.0,84868.0,0.1178273]
[1743628032999,0.3608,84872.0,84852.0,0.1178487]
[1743628033199,0.3608,84855.0,84851.0,0.0589255]
[1743628033387,0.3608,84862.0,84855.0,0.1178455]
[1743628033588,0.01609008,84861.0,84858.0,0.0589203]
[1743628033898,0.3608,84862.0,84861.0,0.1178374]
[1743628034195,0.36097676,84867.0,84866.0,0.1178304]
[1743628034797,0.37770675,84867.0,84866.0,0.1178304]
[1743628034994,0.00113677,84867.0,84866.0,0.1187904]
[1743628035198,0.09677337,84878.0,84877.0,0.1178151]
[1743628035492,0.0588915,84901.0,84891.0,0.1177948]
[1743628035698,0.36181414,84894.0,84893.0,0.1177929]
[1743628035902,0.36918056,84894.0,84893.0,0.1191929]
[1743628036096,0.00884642,84894.0,84893.0,0.2467929]
[1743628036398,0.01679402,84908.0,84907.0,0.1177735]
[1743628036599,0.01685261,84924.0,84908.0,0.2552]
[1743628036796,0.00010779,84916.0,84908.0,0.06751681]
[1743628037003,0.00010779,84916.0,84889.0,0.0588989]
[1743628037004,0.058886,84908.0,84880.0,0.31747292]
[1743628037314,0.1177967,84891.0,84887.0,0.36216]
[1743628037496,0.00736376,84890.0,84889.0,0.00017665]
[1743628037697,0.00864629,84890.0,84889.0,0.11929515]
[1743628037892,0.01814394,84890.0,84889.0,0.11929515]
[1743628038098,0.00736559,84890.0,84889.0,0.11929515]
[1743628038694,0.3608,84901.0,84900.0,0.1177832]
[1743628038898,0.3608,84928.0,84913.0,0.0588826]
[1743628039095,0.1177531,84922.0,84915.0,0.1177615]
[1743628039293,0.117761,84916.0,84915.0,0.00092]
[1743628039504,0.117761,84916.0,84890.0,0.31747292]
[1743628039505,0.117772,84909.0,84890.0,0.31747292]
[1743628039708,0.1177755,84906.0,84890.0,0.31835292]
[1743628040006,0.3608,84903.0,84899.0,0.1177842]
[1743628040211,0.3608,84903.0,84899.0,0.00088]
[1743628040410,0.00068,84903.0,84902.0,0.1177804]
[1743628040612,0.1227,84919.0,84911.0,0.1177679]
[1743628040794,0.36172,84916.0,84911.0,0.00088]
[1743628041000,0.36172,84916.0,84896.0,0.3608]
[1743628041001,0.0588825,84914.0,84896.0,0.3608]
[1743628041200,0.3608,84906.0,84896.0,0.00092]
[1743628041402,0.13051945,84905.0,84896.0,0.00092]
[1743628041604,0.13051945,84905.0,84904.0,0.1177777]
[1743628041805,0.00869946,84905.0,84904.0,0.1186577]
[1743628041995,0.0588692,84933.0,84915.0,0.1177624]
[1743628042196,0.3608,84935.0,84915.0,0.36168]
[1743628042402,0.1326,84932.0,84916.0,0.31747292]
[1743628042609,0.1177409,84931.0,84919.0,0.1177565]
[1743628042806,0.00112001,84931.0,84919.0,0.00116]
[1743628043004,0.3608,84928.0,84919.0,0.00116]
[1743628043203,0.1326,84927.0,84922.0,0.117752]
[1743628043408,0.1177513,84923.0,84922.0,0.00112]
[1743628043607,0.00116,84923.0,84922.0,0.00112]
[1743628044008,0.1189113,84923.0,84922.0,0.00112]
[1743628044215,0.1189113,84923.0,84870.0,0.1178244]
[1743628044216,0.0589019,84886.0,84870.0,0.1178244]
[1743628044403,0.3608,84883.0,84875.0,0.1178166]
[1743628044604,0.36140001,84883.0,84875.0,0.1178166]
[1743628044805,0.1326,84882.0,84877.0,0.1178147]
[1743628045011,0.13344,84882.0,84878.0,0.0589063]
[1743628045212,0.13344,84882.0,84881.0,0.1178096]
[1743628045512,0.13344,84882.0,84881.0,0.12735656]
[1743628046016,0.14759506,84882.0,84881.0,0.00954696]
[1743628046204,0.50839506,84882.0,84881.0,0.00874696]
[1743628046511,0.50839506,84882.0,84867.0,0.0589141]
[1743628046512,0.0589133,84869.0,84854.0,0.1178465]
[1743628046715,0.3608,84855.0,84854.0,0.0006]
[1743628046904,0.00060001,84855.0,84849.0,0.1303]
[1743628047112,0.3608,84853.0,84851.0,0.1178512]
[1743628047309,0.1236,84859.0,84856.0,0.1178434]
[1743628047517,0.1236,84859.0,84857.0,0.1255]
[1743628047817,0.12420001,84859.0,84857.0,0.1261]
[1743628048014,0.78817611,84864.0,84857.0,0.1261]
[1743628048320,0.78897611,84864.0,84857.0,0.03580991]
[1743628048615,0.1178364,84862.0,84857.0,0.03520991]
[1743628048823,0.1241,84861.0,84857.0,0.03520991]
[1743628049003,0.12482,84861.0,84857.0,0.03592991]
[1743628049618,0.2430394,84860.0,84857.0,0.03520991]
[1743628049915,0.12580001,84860.0,84857.0,0.03520991]
[1743628050117,0.1241,84859.0,84857.0,0.03520991]
[1743628050319,0.1178415,84858.0,84857.0,0.03520991]
[1743628050516,0.00060001,84858.0,84857.0,0.03520991]
[1743628050817,0.00060001,84858.0,84849.0,0.00017676]
[1743628050818,0.00060001,84858.0,84849.0,0.11803046]
[1743628051005,0.3608,84850.0,84849.0,0.00017676]
[1743628051210,0.36152,84850.0,84849.0,0.00017676]
[1743628051717,0.3608,84869.0,84863.0,0.1178346]
[1743628051919,0.3608,84880.0,84876.0,0.1178159]
[1743628052219,0.00104001,84880.0,84877.0,0.1249]
[1743628052409,0.254,84879.0,84877.0,0.12586]
[1743628052605,0.25460001,84879.0,84877.0,0.1249]
[1743628052812,0.01394022,84878.0,84877.0,0.2437551]
[1743628053009,0.37570023,84878.0,84877.0,0.2437551]
[1743628054109,0.37570023,84878.0,84877.0,0.11851336]
[1743628054314,0.37570023,84878.0,84877.0,0.23696846]
[1743628054511,0.19578779,84894.0,84882.0,0.0589039]
[1743628054820,0.19670779,84894.0,84893.0,0.1177929]
[1743628055223,0.19670779,84894.0,84893.0,0.1189929]
[1743628055419,0.19670779,84894.0,84893.0,0.48856728]
[1743628055717,0.1274,84906.0,84905.0,0.1177763]
[1743628055915,0.00148,84906.0,84902.0,0.0588902]
[1743628056118,0.3608,84921.0,84906.0,0.0588871]
[1743628056333,0.3608,84933.0,84932.0,0.1177388]
[1743628056516,0.3608,84933.0,84928.0,0.0588716]
[1743628056712,0.2574,84932.0,84931.0,0.1177402]
[1743628056915,0.2574,84932.0,84929.0,0.0588715]
[1743628057111,0.1177513,84923.0,84922.0,5e-08]
[1743628057311,0.49011184,84923.0,84922.0,5e-08]
[1743628057611,0.64743649,84923.0,84922.0,5e-08]
[1743628057914,0.49743649,84923.0,84922.0,5e-08]
[1743628058116,0.62973649,84923.0,84922.0,5e-08]
[1743628058724,0.62973649,84923.0,84902.0,0.1177802]
[1743628058725,0.11730796,84907.0,84902.0,0.11738025]
[1743628059021,0.3608,84903.0,84902.0,0.00132]
[1743628059222,0.36212,84903.0,84902.0,0.00132]
[1743628059409,0.38131109,84903.0,84902.0,0.00132]
[1743628059614,0.38131109,84903.0,84899.0,0.1177845]
[1743628059823,0.27299109,84902.0,84900.0,0.117783]
[1743628060027,0.27299109,84902.0,84900.0,0.119103]
[1743628060614,0.3608,84907.0,84900.0,0.00132]
[1743628060815,0.1255,84902.0,84901.0,0.1177818]
[1743628061017,0.1255,84902.0,84901.0,0.00132]
[1743628061316,0.117806,84884.0,84870.0,0.058912]
[1743628061624,0.4863,84883.0,84877.0,0.1178146]
[1743628061818,0.2483,84883.0,84878.0,0.0589069]
[1743628062029,0.2483,84883.0,84873.0,0.00873836]
[1743628062030,0.2483,84883.0,84882.0,0.1178082]
[1743628062215,0.2483,84883.0,84882.0,0.1187682]
[1743628062819,0.00017665,84891.0,84882.0,0.00096]
[1743628063020,0.00737088,84883.0,84882.0,0.1187282]
[1743628063721,0.48597768,84883.0,84882.0,0.00092]
[1743628063931,0.1178179,84875.0,84874.0,0.00017665]
[1743628064124,0.3608,84875.0,84874.0,0.00017665]
[1743628064314,0.01924594,84875.0,84874.0,0.11799595]
[1743628064514,0.03333946,84875.0,84873.0,0.1178206]
[1743628064718,0.77955896,84874.0,84839.0,0.2525]
[1743628064924,0.3608,84840.0,84824.0,0.3608]
[1743628065119,0.3608,84825.0,84815.0,0.00064]
[1743628065314,0.0589458,84822.0,84815.0,0.00128]
[1743628065514,0.3719936,84821.0,84812.0,0.1179046]
[1743628065719,0.25474,84821.0,84814.0,0.1179026]
[1743628065919,0.25474,84821.0,84814.0,0.00064]
[1743628066124,0.3726337,84821.0,84811.0,0.0589532]
[1743628066328,0.3726337,84821.0,84811.0,0.0595932]
[1743628066525,0.4787054,84812.0,84811.0,0.00969831]
[1743628066726,0.36140001,84812.0,84811.0,0.00905831]
[1743628066915,0.00060001,84812.0,84811.0,0.00969831]
[1743628067122,0.36980541,84812.0,84811.0,0.00981831]
[1743628067431,0.36980541,84812.0,84811.0,0.00076]
[1743628067626,0.25190001,84812.0,84811.0,0.1186668]
[1743628067922,0.13110001,84812.0,84811.0,0.00076]
[1743628068125,0.00060001,84812.0,84811.0,0.1185468]
[1743628068330,0.00060001,84812.0,84811.0,0.2497468]
[1743628068922,0.00060001,84812.0,84811.0,0.15531915]
[1743628069115,0.00060001,84812.0,84811.0,0.15607915]
[1743628069326,0.11850541,84812.0,84811.0,0.00076]
[1743628069522,0.00060001,84812.0,84810.0,0.00017677]
[1743628069727,0.00060001,84812.0,84810.0,0.11872397]
[1743628069923,0.00060001,84812.0,84811.0,0.1179068]
[1743628070125,0.00060001,84812.0,84811.0,0.1185068]
[1743628070419,0.11850541,84812.0,84811.0,0.0006]
[1743628070626,0.11850541,84812.0,84800.0,0.355]
[1743628070627,0.1179207,84801.0,84800.0,0.355]
[1743628070823,0.4795207,84801.0,84800.0,0.35568]
[1743628071017,0.49099243,84801.0,84800.0,0.35568]
[1743628071419,0.49099243,84801.0,84776.0,0.1217]
[1743628071620,0.3608,84789.0,84770.0,0.0589813]
[1743628071928,0.3618,84789.0,84786.0,0.00017687]
[1743628072124,0.15955879,84788.0,84786.0,0.00017687]
[1743628072330,0.1605988,84788.0,84786.0,0.00017687]
[1743628073320,0.1605988,84788.0,84787.0,0.1878402]
[1743628073625,0.1605988,84788.0,84787.0,0.1884402]
[1743628073939,0.1605988,84788.0,84787.0,0.3115402]
[1743628074530,0.3608,84794.0,84793.0,0.1179319]
[1743628074729,0.3608,84813.0,84793.0,0.5114]
[1743628074919,0.1247,84824.0,84823.0,0.1178901]
[1743628075125,0.0008,84824.0,84823.0,0.00076]
[1743628075322,0.16450719,84836.0,84834.0,0.1178749]
[1743628075529,0.1247,84845.0,84844.0,0.117861]
[1743628075731,0.1302,84854.0,84848.0,0.0589274]
[1743628075928,0.1247,84853.0,84850.0,0.1178525]
[1743628076135,0.3608,84878.0,84852.0,0.3608]
[1743628076436,0.00112001,84878.0,84877.0,0.4786151]
[1743628076728,0.1178058,84884.0,84879.0,0.1178115]
[1743628076929,0.00112001,84884.0,84880.0,0.3608]
[1743628077140,0.00985856,84890.0,84880.0,0.36192]
[1743628077341,0.11797386,84890.0,84889.0,0.3608]
[1743628077632,0.00129677,84890.0,84889.0,0.00112]
[1743628077932,0.058891,84901.0,84889.0,0.12763265]
[1743628078236,0.0588886,84905.0,84895.0,0.3608]